[Event "Romanian Superliga Women 2024"]
[Site "Mamaia"]
[Date "2024.10.02"]
[Round "3.1"]
[White "Raeva, Elitsa"]
[Black "Hoanca, Alexia-Ioana"]
[Result "1-0"]
[ECO "A20"]
[WhiteElo "2185"]
[BlackElo "1962"]
[Annotator "TA"]
[PlyCount "83"]
[EventDate "2024.09.26"]
[EventType "team-tourn"]
[EventCountry "ROU"]
[SourceTitle "playchess.com"]
[Source "ChessBase"]
[SourceQuality "1"]
[TimeControl "40/5400+30:1800+30"]

{[%evp 9,83,-11,56,-16,56,-31,78,56,79,0,-7,-22,-50,-112,-38,-44,0,-11,27,16,20,28,28,0,35,0,0,0,0,0,0,-16,-13,-16,0,-17,16,16,21,16,18,0,374,382,368,355,370,369,404,384,376,366,427,390,435,342,363,293,503,502,632,611,647,636,959,978,977,963,1443,1183,1583,1551,2177,1466,2785,1742]} 1. c4 {[%emt 0:00:06]} e5 {[%emt 0:00:05]} 2. g3 {[%emt 0:00:52]} c6 {[%emt 0:00:16]} 3. d4 {[%emt 0:02:04]} e4 {[%emt 0:03:21]} 4. Nc3 {[%emt 0:03:40]} d5 {[%emt 0:01:15]} 5. Qb3 {[%emt 0:04:55]} Nf6 {[%emt 0:02:48]} (5... dxc4 $11 6. Qxc4 Be6) 6. Bg5 {[%emt 0:04:39]} ({White should try} 6. cxd5 $1 $14 h6 7. Bh3) 6... Nbd7 {[%emt 0:02:36]} ({Black should play} 6... dxc4 $11 7. Qxc4 b5) 7. Bg2 {[%emt 0:05:04]} (7. cxd5 $14 h6 8. dxc6 bxc6 9. Bf4) 7... Be7 {[%emt 0:02:20]} (7... dxc4 $15 8. Qxc4 Nb6) 8. cxd5 $16 {[%emt 0:05:44] White is better.} cxd5 {[%emt 0:04:22]} 9. f3 {[%emt 0:00:47] White is much more active. The black rooks are passive.} ({Better is} 9. Nh3 $1 $16) 9... O-O $11 {[%emt 0:08:28]} 10. fxe4 {[%emt 0:04:20]} dxe4 {[%emt 0:04:52]} 11. e3 {[%emt 0:05:37]} (11. Rd1 $15) 11... Re8 {[%emt 0:03:58]} (11... Ng4 $17 12. Bxe7 Qxe7) 12. Nge2 {[%emt 0:02:16][%cal Oe1g1]} Qa5 {[%emt 0:16:29]} (12... h6 $5 13. Bxf6 Nxf6 $15) 13. Qb5 {[%emt 0:15:26]} Bb4 {[%emt 0:03:14]} 14. O-O {[%emt 0:04:56]} a6 $1 {[%emt 0:10:42]} 15. Qxa5 {[%emt 0:01:53]} Bxa5 {[%emt 0:01:23]} 16. Rf5 {[%emt 0:01:51]} (16. Rac1 $5) 16... Bb6 {[%emt 0:08:41]} 17. Raf1 {[%emt 0:02:39][%cal Ba1f1,Bf1f6,Bf6d6,Bd6h6,Bh6h4][%mdl 32]} h6 {[%emt 0:02:56]} 18. Bxf6 {[%emt 0:06:15]} Nxf6 {[%emt 0:00:24]} 19. Rxf6 {[%emt 0:00:29]} gxf6 {[%emt 0:03:30]} 20. Rxf6 {[%emt 0:00:20]} Bd8 {[%emt 0:02:42]} 21. Rd6 {[%emt 0:03:03]} Bg4 {[%emt 0:04:58]} 22. Nf4 {[%emt 0:02:40]} (22. Bxe4 $2 Bxe2 23. Kf2 Bg4 24. Rxh6 Rc8 $19) 22... Bc7 {[%emt 0:01:57]} 23. Rxh6 {[%emt 0:00:42]} Kg7 {[%emt 0:01:22]} 24. Rh4 {[%emt 0:00:33]} f5 {[%emt 0:03:49][%cal Bf7f5,Bf5g4][%mdl 32]} 25. h3 {[%emt 0:00:58]} Bd8 $2 {[%emt 0:00:51][%mdl 8192] [#] White leaves nothing to chance now.} (25... Bxf4 $11 {and Black has nothing to worry.} 26. exf4 Bf3) 26. hxg4 $18 {[%emt 0:01:31]} Bxh4 {[%emt 0:00:05]} 27. gxh4 {[%emt 0:00:08]} fxg4 {[%emt 0:00:44]} 28. Kf2 {[%emt 0:01:08]} (28. Nxe4 Rac8 29. Nd6 Rc1+ 30. Kh2 Rh8 $18) 28... Rac8 {[%emt 0:01:36]} 29. Kg3 {[%emt 0:01:24]} (29. Bxe4 Rxc3 30. bxc3 Rxe4 $11) 29... b5 {[%emt 0:01:08]} 30. a3 {[%emt 0:00:00]} (30. Bxe4 Rxc3 31. bxc3 Rxe4 $17) (30. Nxe4 Rc2 $18) 30... Rb8 {[%emt 0:00:46]} 31. Nfd5 {[%emt 0:01:16]} a5 {[%emt 0:01:26]} 32. Nc7 {[%emt 0:01:19]} (32. Bxe4 b4 33. axb4 axb4 $11) 32... Rec8 {[%emt 0:01:34]} 33. N7xb5 {[%emt 0:00:57]} a4 $2 {[%emt 0:00:07] [#]} (33... Rxc3 {was necessary.} 34. Nxc3 Rxb2 35. Bxe4 Rb3) 34. Bxe4 {[%emt 0:02:13] White is clearly winning.} Kh6 {[%emt 0:01:48]} 35. Bf5 {[%emt 0:03:03]} Rg8 {[%emt 0:00:18]} 36. d5 {[%emt 0:00:24]} Rbe8 {[%emt 0:00:38]} 37. e4 {[%emt 0:00:12]} ({Stronger than} 37. Nxa4 Rxe3+ 38. Kg2 (38. Kf4 g3 $11) 38... Re2+ 39. Kg3 Re3+ 40. Kg2 (40. Kf4 g3 $11) 40... Re2+ 41. Kg1 (41. Kg3 Re3+ $11) 41... Re1+ 42. Kg2 Re2+ $11) 37... Kg7 {[%emt 0:00:20]} 38. Nxa4 {[%emt 0:01:32]} Kf6 {[%emt 0:00:27]} 39. Nc5 {[%emt 0:00:20]} (39. Bxg4 $2 {perishes.} Rxe4 40. Kf2 Rexg4 $17 (40... Rxa4 41. Be2 $17)) 39... Rg7 {[%emt 0:00:53]} 40. b4 {[%emt 0:00:00]} Ra8 {[%emt 0:00:00]} 41. a4 {[%emt 0:02:57]} Rd8 {[%emt 0:05:16]} 42. d6 {[%emt 0:03:01] Weighted Error Value: White=0.26 (precise) /Black=0.57.  Loses game:     	---       	Black=1      Mistake:       	White=3     	Black=4      Inaccurate:     	White=2     	Black=4      OK:         	White=6     	Black=7      Best:        	White=3     	---        Strong:       	---       	Black=1} 1-0

[Event "Romanian Superliga Women 2024"]
[Site "Mamaia"]
[Date "2024.10.02"]
[Round "3.2"]
[White "Batagan, Ilinca-Petra"]
[Black "Pirvulescu, Ekaterina"]
[Result "0-1"]
[ECO "C42"]
[WhiteElo "1935"]
[BlackElo "2083"]
[Annotator "NA RC"]
[PlyCount "108"]
[EventDate "2024.09.26"]
[EventType "team-tourn"]
[EventCountry "ROU"]
[SourceTitle "playchess.com"]
[Source "ChessBase"]
[SourceQuality "1"]
[TimeControl "40/5400+30:1800+30"]

1. e4 {[%emt 0:00:09]} e5 {[%emt 0:00:07]} 2. Nf3 {[%emt 0:00:42]} Nf6 {[%emt 0:00:04]} 3. Nxe5 {[%emt 0:01:07]} d6 {[%emt 0:00:05]} 4. Nf3 {[%emt 0:00:07]} Nxe4 {[%emt 0:00:04]} 5. c4 {[%emt 0:00:22]} Nc6 {[%emt 0:04:49]} 6. Nc3 {[%emt 0:02:14]} Nxc3 {[%emt 0:01:54]} 7. dxc3 {[%emt 0:00:08]} Be7 {[%emt 0:03:04]} 8. Bd3 {[%emt 0:07:07]} Bf6 {[%emt 0:09:18]} 9. Qc2 {[%emt 0:05:34]} Qe7+ {[%emt 0:03:38]} 10. Be3 {[%emt 0:02:36]} g6 {[%emt 0:10:45]} 11. O-O-O {[%emt 0:10:22]} O-O $14 {[%emt 0:08:26]} 12. Bh6 {[%emt 0:11:30]} Bg7 {[%emt 0:02:43]} 13. Bxg7 {[%emt 0:00:07]} Kxg7 {[%emt 0:00:04]} 14. h4 {[%emt 0:14:12]} Ne5 {[%emt 0:08:34]} 15. Nxe5 {[%emt 0:01:41]} dxe5 {[%emt 0:01:35]} 16. h5 {[%emt 0:06:15]} Qg5+ {[%emt 0:00:45]} 17. Kb1 {[%emt 0:01:34]} Be6 {[%emt 0:03:36]} 18. f3 {[%emt 0:11:39]} Rad8 {[%emt 0:04:10]} 19. g4 {[%emt 0:00:55]} Qf4 {[%emt 0:03:37]} 20. hxg6 {[%emt 0:08:40]} hxg6 {[%emt 0:00:51]} 21. Be4 {[%emt 0:03:15]} c6 {[%emt 0:07:03]} 22. b3 {[%emt 0:01:25]} Rh8 {[%emt 0:02:02]} 23. Rxh8 {[%emt 0:04:43]} Rxh8 {[%emt 0:00:45]} 24. Qd2 {[%emt 0:01:15]} Qxd2 {[%emt 0:01:35]} 25. Rxd2 {[%emt 0:00:05]} f5 {[%emt 0:01:25]} 26. gxf5 {[%emt 0:00:06]} gxf5 {[%emt 0:00:04]} 27. Bc2 {[%emt 0:00:17]} Kf6 {[%emt 0:00:40]} 28. Rd6 {[%emt 0:02:35]} Rh3 {[%emt 0:03:24]} 29. Bd1 {[%emt 0:00:33]} Ke7 {[%emt 0:05:13]} 30. Rd2 {[%emt 0:00:16]} Bf7 {[%emt 0:03:03]} 31. Kc2 {[%emt 0:01:25]} f4 {[%emt 0:01:17]} 32. Rg2 {[%emt 0:01:27]} Kf6 {[%emt 0:01:27]} 33. Kd2 {[%emt 0:01:08]} Bh5 {[%emt 0:01:42]} 34. Rf2 {[%emt 0:00:04]} Rg3 {[%emt 0:01:35]} 35. b4 {[%emt 0:01:12]} Rh3 {[%emt 0:04:54]} 36. b5 {[%emt 0:00:29]} c5 {[%emt 0:00:56]} 37. Kc2 {[%emt 0:01:02]} e4 {[%emt 0:01:09]} 38. fxe4 {[%emt 0:00:09]} Bxd1+ {[%emt 0:00:20]} 39. Kxd1 {[%emt 0:00:01]} Ke5 {[%emt 0:00:05]} 40. Kd2 {[%emt 0:00:00]} Kxe4 {[%emt 0:00:00]} 41. Re2+ {[%emt 0:06:08]} Re3 {[%emt 0:04:06]} 42. Rh2 {[%emt 0:03:58]} Rd3+ {[%emt 0:00:52]} 43. Kc2 {[%emt 0:00:21]} Rd7 {[%emt 0:01:29]} 44. Rh8 {[%emt 0:02:14]} Ke3 {[%emt 0:01:48]} 45. Re8+ {[%emt 0:00:50]} Kf2 {[%emt 0:00:14]} 46. Re5 {[%emt 0:00:58]} b6 {[%emt 0:00:21]} 47. a4 {[%emt 0:02:41]} f3 {[%emt 0:00:27]} 48. Rd5 {[%emt 0:00:10]} Re7 {[%emt 0:01:09]} 49. Kd1 {[%emt 0:01:52]} Re1+ {[%emt 0:02:33]} 50. Kd2 {[%emt 0:00:13]} Re2+ {[%emt 0:02:13]} 51. Kd3 {[%emt 0:03:39]} Ke1 {[%emt 0:02:11]} 52. Rf5 {[%emt 0:04:05]} f2 {[%emt 0:00:37]} 53. a5 {[%emt 0:00:11]} Re7 {[%emt 0:00:58]} 54. axb6 {[%emt 0:00:39]} axb6 {[%emt 0:00:08]} 0-1

[Event "Romanian Superliga Women 2024"]
[Site "Mamaia"]
[Date "2024.10.02"]
[Round "3.3"]
[White "Iordache, Alexia-Andreea"]
[Black "Sariteanu, Sabina"]
[Result "1-0"]
[ECO "A07"]
[WhiteElo "2014"]
[BlackElo "1815"]
[Annotator "NA RC"]
[PlyCount "71"]
[EventDate "2024.09.26"]
[EventType "team-tourn"]
[EventCountry "ROU"]
[SourceTitle "playchess.com"]
[Source "ChessBase"]
[SourceQuality "1"]
[TimeControl "40/5400+30:1800+30"]

1. Nf3 {[%emt 0:00:08]} e6 {[%emt 0:00:06]} 2. g3 {[%emt 0:00:10]} d5 {[%emt 0:00:06]} 3. Bg2 {[%emt 0:00:04]} b6 {[%emt 0:00:19]} 4. O-O {[%emt 0:00:08]} Bb7 {[%emt 0:00:06]} 5. d3 {[%emt 0:00:10]} c5 {[%emt 0:05:22]} 6. Nbd2 {[%emt 0:00:06] A07: Réti Opening: New York and Capablanca Systems.} Nc6 {[%emt 0:02:04]} 7. e4 {[%emt 0:00:42]} d4 {[%emt 0:00:55]} 8. e5 {[%emt 0:05:48]} Qc7 {[%emt 0:00:08]} 9. Re1 {[%emt 0:00:33]} Nge7 {[%emt 0:00:07]} 10. Nc4 {[%emt 0:03:03]} Ng6 {[%emt 0:00:32]} 11. a4 {[%emt 0:00:18]} Be7 {[%emt 0:01:27]} 12. Qe2 {[%emt 0:01:55]} a6 {[%emt 0:04:03]} 13. h4 {[%emt 0:06:23]} b5 {[%emt 0:01:10]} 14. axb5 {[%emt 0:00:13]} axb5 {[%emt 0:00:06]} 15. Rxa8+ {[%emt 1:18:19]} Bxa8 {[%emt 0:02:58]} 16. Na3 {[%emt 0:00:00]} Qb7 {[%emt 0:06:38]} 17. h5 {[%emt 0:00:00]} Nf8 {[%emt 0:01:25]} 18. Nd2 {[%emt 0:00:00]} g5 {[%emt 0:02:33]} 19. Ne4 {[%emt 0:00:00]} h6 {[%emt 0:00:50]} 20. c4 {[%emt 0:00:00]} dxc3 {[%emt 0:00:43]} 21. bxc3 {[%emt 0:00:00]} Qb8 {[%emt 0:01:06]} 22. d4 {[%emt 0:00:00]} cxd4 {[%emt 0:00:35]} 23. Nxb5 {[%emt 0:00:00]} Qxe5 $18 {[%emt 0:09:03]} (23... d3 24. Qa2 (24. Qxd3 Nd7 $18) 24... Nd7 (24... Nxe5 $2 25. Qxa8 Qxa8 26. Nc7+ Kd8 27. Nxa8 $18)) 24. cxd4 {[%emt 0:00:00]} Qb8 {[%emt 0:02:21]} 25. d5 {[%emt 0:00:00]} Ne5 {[%emt 0:06:06]} 26. d6 {[%emt 0:00:00]} Bxe4 {[%emt 0:00:29]} 27. dxe7 {[%emt 0:00:00]} Bxg2 {[%emt 0:02:54]} 28. exf8=R+ {[%emt 0:00:00]} Rxf8 {[%emt 0:07:27]} 29. Qxe5 {[%emt 0:00:00]} Qxe5 {[%emt 0:00:16]} 30. Rxe5 {[%emt 0:00:00]} Bf3 {[%emt 0:00:08]} 31. Ba3 {[%emt 0:00:00]} Rg8 {[%emt 0:02:01]} 32. Rc5 {[%emt 0:00:00]} f5 {[%emt 0:03:38]} 33. Rc7 {[%emt 0:00:00]} Bxh5 {[%emt 0:00:25]} 34. Nd6+ {[%emt 0:00:00]} Kd8 {[%emt 0:00:09]} 35. Ra7 {[%emt 0:00:00]} Bf3 {[%emt 0:00:14]} 36. Bb4 {[%emt 0:00:00]} 1-0

[Event "Romanian Superliga Women 2024"]
[Site "Mamaia"]
[Date "2024.10.02"]
[Round "3.4"]
[White "Popovici, Bianca-Andrada-Maria"]
[Black "Aldea, Maria-Antonia"]
[Result "0-1"]
[ECO "A50"]
[WhiteElo "1533"]
[BlackElo "1826"]
[Annotator "NA RC"]
[PlyCount "88"]
[EventDate "2024.09.26"]
[EventType "team-tourn"]
[EventCountry "ROU"]
[SourceTitle "playchess.com"]
[Source "ChessBase"]
[SourceQuality "1"]
[TimeControl "40/5400+30:1800+30"]

1. d4 {[%emt 0:00:02]} Nf6 {[%emt 0:07:48]} 2. c4 {[%emt 0:00:12]} e6 {[%emt 0:00:04]} 3. Bf4 {[%emt 0:00:28]} b6 {[%emt 0:02:27]} 4. Nd2 {[%emt 0:02:38]} Bb7 {[%emt 0:00:35]} 5. Ngf3 {[%emt 0:01:11]} c5 {[%emt 0:05:53]} 6. e3 {[%emt 0:04:47]} Nc6 {[%emt 0:02:29]} 7. Ne5 {[%emt 0:09:06]} cxd4 {[%emt 1:14:44]} 8. Nxc6 {[%emt 0:00:14]} dxc6 {[%emt 0:00:00]} 9. exd4 {[%emt 0:01:08]} Qxd4 {[%emt 0:00:00]} 10. Be3 {[%emt 0:04:45]} Qd7 {[%emt 0:00:00]} 11. Be2 {[%emt 0:03:01]} Rd8 {[%emt 0:00:00]} 12. O-O {[%emt 0:04:31]} Qc7 {[%emt 0:00:00]} 13. Qc2 {[%emt 0:04:50]} Bd6 {[%emt 0:00:00]} 14. g3 {[%emt 0:02:17]} c5 {[%emt 0:00:00]} 15. Bf3 {[%emt 0:04:51]} Bxf3 {[%emt 0:00:00]} 16. Nxf3 {[%emt 0:00:09]} Qc6 {[%emt 0:00:00]} 17. Nd2 {[%emt 0:04:15]} h6 {[%emt 0:00:00]} 18. f3 {[%emt 0:03:34]} O-O {[%emt 0:00:00]} 19. Rad1 {[%emt 0:07:31]} Be5 {[%emt 0:00:00]} 20. b3 {[%emt 0:01:54]} Rd7 {[%emt 0:00:00]} 21. Nb1 {[%emt 0:03:02]} Rfd8 {[%emt 0:00:00]} 22. Kf2 {[%emt 0:03:19]} Bd4 {[%emt 0:00:00]} 23. Bxd4 {[%emt 0:01:44]} Rxd4 {[%emt 0:00:00]} 24. Rxd4 {[%emt 0:02:39]} Rxd4 {[%emt 0:00:00]} 25. Rd1 {[%emt 0:02:35]} e5 {[%emt 0:00:00]} 26. Nc3 {[%emt 0:01:38]} Qd7 {[%emt 0:00:00]} 27. Rxd4 {[%emt 0:03:16]} exd4 {[%emt 0:00:00]} 28. Na4 {[%emt 0:02:09]} Qh3 {[%emt 0:00:00]} 29. Ke1 {[%emt 0:00:53]} Qe6+ {[%emt 0:00:00]} 30. Kf1 {[%emt 0:01:12]} Qe3 {[%emt 0:00:00]} 31. Qe2 {[%emt 0:00:54]} Qxe2+ {[%emt 0:00:00]} 32. Kxe2 {[%emt 0:00:08]} Nd7 {[%emt 0:00:00]} 33. Nb2 {[%emt 0:00:14]} Ne5 {[%emt 0:00:00]} 34. Nd3 {[%emt 0:01:47]} Nxd3 {[%emt 0:00:00]} 35. Kxd3 {[%emt 0:00:06]} f5 {[%emt 0:00:00]} 36. a3 {[%emt 0:00:43]} Kf7 {[%emt 0:00:00]} 37. b4 {[%emt 0:00:20]} Ke6 {[%emt 0:00:00]} 38. f4 {[%emt 0:00:19]} Kf6 {[%emt 0:00:00]} 39. bxc5 {[%emt 0:01:01]} bxc5 {[%emt 0:00:00]} 40. a4 {[%emt 0:00:00]} g5 {[%emt 0:00:00]} 41. h3 {[%emt 0:00:34]} gxf4 {[%emt 0:00:00]} 42. gxf4 {[%emt 0:00:02]} Kg6 {[%emt 0:00:00]} 43. a5 {[%emt 0:00:20]} Kh5 {[%emt 0:00:00]} 44. a6 {[%emt 0:00:20]} Kh4 {[%emt 0:00:00]} 0-1

[Event "Romanian Superliga Women 2024"]
[Site "Mamaia"]
[Date "2024.10.02"]
[Round "3.5"]
[White "Semenova, Vasylyna"]
[Black "Tarleva, Diana"]
[Result "1/2-1/2"]
[ECO "A85"]
[WhiteElo "1887"]
[BlackElo "2135"]
[Annotator "NA RC"]
[PlyCount "34"]
[EventDate "2024.09.26"]
[EventType "team-tourn"]
[EventCountry "ROU"]
[SourceTitle "playchess.com"]
[Source "ChessBase"]
[SourceQuality "1"]
[TimeControl "40/5400+30:1800+30"]

1. d4 {[%emt 0:00:03]} e6 {[%emt 0:20:15]} 2. c4 {[%emt 0:00:09]} f5 {[%emt 0:00:03]} 3. Nc3 {[%emt 0:00:11]} Nf6 {[%emt 0:00:06]} 4. g3 {[%emt 0:00:27]} Bb4 {[%emt 0:01:21]} 5. Qc2 {[%emt 0:02:13]} d6 {[%emt 0:06:20]} 6. Bg2 {[%emt 0:05:16]} O-O {[%emt 0:04:45]} 7. Nf3 {[%emt 0:03:12]} Qe8 {[%emt 0:03:08]} 8. O-O {[%emt 0:01:41]} Bxc3 {[%emt 0:00:43]} 9. Qxc3 {[%emt 0:00:34]} a5 {[%emt 0:05:17]} 10. c5 {[%emt 0:14:17]} Ne4 {[%emt 0:19:15]} 11. Qc4 {[%emt 0:03:17]} Bd7 {[%emt 0:08:55]} 12. cxd6 {[%emt 0:00:47]} cxd6 {[%emt 0:00:10]} 13. Ng5 {[%emt 0:04:04]} d5 {[%emt 0:03:51]} 14. Qb3 {[%emt 0:00:55]} Nc6 $11 {[%emt 0:03:58]} 15. Nxe4 {[%emt 0:04:25]} fxe4 {[%emt 0:00:02]} 16. Rd1 {[%emt 0:06:42]} Nb4 {[%emt 0:01:36]} 17. a4 {[%emt 0:12:59]} Rc8 {[%emt 0:19:15]} 1/2-1/2

[Event "Romanian Superliga Women 2024"]
[Site "Mamaia"]
[Date "2024.10.02"]
[Round "3.6"]
[White "Stanciu, Andreea-Briana"]
[Black "Sunea, Sara Maria"]
[Result "1-0"]
[ECO "A03"]
[WhiteElo "1957"]
[BlackElo "1871"]
[Annotator "NA RC"]
[PlyCount "115"]
[EventDate "2024.09.26"]
[EventType "team-tourn"]
[EventCountry "ROU"]
[SourceTitle "playchess.com"]
[Source "ChessBase"]
[SourceQuality "1"]
[TimeControl "40/5400+30:1800+30"]

1. f4 {[%emt 0:00:44]} d5 {[%emt 0:00:09]} 2. b3 {[%emt 0:00:09]} Bg4 {[%emt 0:00:09]} 3. Bb2 {[%emt 0:01:11]} Nc6 {[%emt 0:02:24]} 4. g3 {[%emt 0:02:07]} e6 {[%emt 0:01:05]} 5. Bg2 {[%emt 0:00:13]} Qd7 {[%emt 0:02:21]} 6. Nf3 {[%emt 0:01:24]} f6 {[%emt 0:01:18]} 7. d4 {[%emt 0:08:53]} Nge7 {[%emt 0:03:24]} 8. Nbd2 {[%emt 0:01:43]} Nf5 {[%emt 0:06:05]} 9. Kf2 {[%emt 0:01:29]} O-O-O {[%emt 0:08:31]} 10. e3 {[%emt 0:02:26]} h5 {[%emt 0:06:33]} 11. h3 {[%emt 0:02:38]} Bxf3 {[%emt 0:00:18]} 12. Bxf3 {[%emt 0:00:16]} h4 {[%emt 0:02:32]} 13. g4 {[%emt 0:03:46]} Nd6 {[%emt 0:03:13]} 14. c4 {[%emt 0:03:57]} Nf7 {[%emt 0:03:50]} 15. a3 {[%emt 0:11:43]} g5 {[%emt 0:02:37]} 16. cxd5 {[%emt 0:07:40]} exd5 $11 {[%emt 0:00:15]} 17. f5 $1 {[%emt 0:00:59]} Bd6 {[%emt 0:06:41]} 18. b4 {[%emt 0:04:43]} Bg3+ {[%emt 0:00:49]} 19. Kg2 {[%emt 0:00:24]} Rhe8 {[%emt 0:06:21]} 20. Qb3 {[%emt 0:01:12]} Kb8 {[%emt 0:10:11]} 21. Rhc1 {[%emt 0:04:41]} Ne7 {[%emt 0:08:26]} 22. a4 {[%emt 0:04:59]} Nc8 {[%emt 0:09:06]} 23. Rc5 {[%emt 0:03:25]} Qe7 {[%emt 0:06:17]} 24. Nf1 {[%emt 0:04:02]} Bd6 {[%emt 0:01:28]} 25. Rc2 {[%emt 0:07:55]} Bxb4 {[%emt 0:04:04]} 26. Bxd5 {[%emt 0:00:16]} Rf8 {[%emt 0:00:40]} 27. a5 {[%emt 0:02:53]} a6 {[%emt 0:02:00]} 28. Ra4 {[%emt 0:00:36]} Rxd5 {[%emt 0:02:00]} 29. Qxd5 {[%emt 0:00:09]} Rd8 {[%emt 0:00:26]} 30. Qe6 {[%emt 0:00:47]} Bd6 {[%emt 0:00:57]} 31. Qxe7 {[%emt 0:01:02]} Nxe7 {[%emt 0:00:10]} 32. Ba3 {[%emt 0:00:42]} Nd5 {[%emt 0:00:34]} 33. Kf3 {[%emt 0:02:39]} Re8 {[%emt 0:00:40]} 34. Bc5 {[%emt 0:00:46]} Bxc5 {[%emt 0:00:49]} 35. Rxc5 {[%emt 0:00:09]} c6 {[%emt 0:00:03]} 36. Ra3 {[%emt 0:00:55]} Nd6 {[%emt 0:00:20]} 37. Nd2 {[%emt 0:00:10]} Re7 {[%emt 0:01:00]} 38. Rc1 {[%emt 0:12:12]} Nb5 {[%emt 0:00:40]} 39. Rd3 {[%emt 0:00:53]} Nb4 {[%emt 0:00:22]} 40. Rb3 {[%emt 0:00:00]} Nd5 {[%emt 0:00:00]} 41. Ne4 {[%emt 0:01:44]} Kc7 {[%emt 0:09:38]} 42. Nc5 {[%emt 0:00:45]} Kd6 {[%emt 0:01:05]} 43. Ne6 {[%emt 0:01:22]} Ndc7 {[%emt 0:05:15]} 44. Nxc7 {[%emt 0:00:26]} Rxc7 {[%emt 0:00:06]} 45. Ke4 {[%emt 0:01:39]} Rd7 {[%emt 0:04:00]} 46. Kd3 {[%emt 0:02:19]} Ke7 {[%emt 0:00:16]} 47. Rb4 {[%emt 0:00:47]} Rd8 {[%emt 0:02:22]} 48. e4 {[%emt 0:00:35]} Rd7 {[%emt 0:00:17]} 49. Ke3 {[%emt 0:01:55]} Kd6 {[%emt 0:00:19]} 50. Rc5 {[%emt 0:01:24]} Re7 {[%emt 0:00:23]} 51. Kd3 {[%emt 0:01:21]} Re8 {[%emt 0:00:30]} 52. Rb1 {[%emt 0:01:15]} Re7 {[%emt 0:02:19]} 53. Re1 {[%emt 0:00:25]} Kd7 {[%emt 0:00:36]} 54. e5 {[%emt 0:01:09]} Ke8 {[%emt 0:00:10]} 55. Re4 {[%emt 0:00:45]} Kf7 {[%emt 0:00:20]} 56. exf6 {[%emt 0:00:50]} Rxe4 {[%emt 0:00:09]} 57. Kxe4 {[%emt 0:00:05]} Nc7 {[%emt 0:00:04]} 58. Ke5 {[%emt 0:00:19]} 1-0

[Event "Romanian Superliga Women 2024"]
[Site "Mamaia"]
[Date "2024.10.02"]
[Round "3.7"]
[White "Bitca, Emilia"]
[Black "Patru, Alexandra-Ioana"]
[Result "1-0"]
[ECO "C96"]
[WhiteElo "1865"]
[BlackElo "1832"]
[Annotator "NA RC"]
[PlyCount "105"]
[EventDate "2024.09.26"]
[EventType "team-tourn"]
[EventCountry "ROU"]
[SourceTitle "playchess.com"]
[Source "ChessBase"]
[SourceQuality "1"]
[TimeControl "40/5400+30:1800+30"]

1. e4 {[%emt 0:00:08]} e5 {[%emt 0:00:12]} 2. Nf3 {[%emt 0:00:15]} Nc6 {[%emt 0:00:33]} 3. Bb5 {[%emt 0:00:35]} a6 {[%emt 0:00:19]} 4. Ba4 {[%emt 0:00:15]} Nf6 {[%emt 0:00:47]} 5. O-O {[%emt 0:00:52]} Be7 {[%emt 0:00:56]} 6. Re1 {[%emt 0:01:00]} b5 {[%emt 0:00:47]} 7. Bb3 {[%emt 0:00:06]} d6 {[%emt 0:00:12]} 8. c3 {[%emt 0:00:20]} O-O {[%emt 0:00:10]} 9. h3 {[%emt 0:00:05]} Nd7 {[%emt 0:01:40]} 10. d4 {[%emt 0:03:35]} Bb7 {[%emt 0:08:12]} 11. Nbd2 {[%emt 0:02:33]} exd4 {[%emt 0:03:48]} 12. cxd4 {[%emt 0:00:10]} Na5 {[%emt 0:00:16]} 13. Bc2 {[%emt 0:00:24]} c5 {[%emt 0:02:28]} 14. d5 {[%emt 0:03:28]} Bf6 {[%emt 0:02:21]} 15. Nf1 {[%emt 0:06:32]} Re8 {[%emt 0:03:04]} 16. Ne3 {[%emt 0:05:58]} g6 {[%emt 0:03:04]} 17. Ng4 {[%emt 0:07:38]} Bg7 {[%emt 0:05:23]} 18. Bg5 {[%emt 0:06:04]} Qb6 {[%emt 0:06:50]} 19. Nh6+ {[%emt 0:11:22]} Kf8 {[%emt 0:05:57]} 20. Qc1 {[%emt 0:04:04]} Nc4 {[%emt 0:05:19]} 21. Qf4 {[%emt 0:03:28]} Nce5 {[%emt 0:13:27]} 22. Nxe5 {[%emt 0:04:44]} Nxe5 {[%emt 0:00:17]} 23. Bf6 {[%emt 0:02:11]} Qc7 {[%emt 0:01:16]} 24. Re3 {[%emt 0:15:57]} Bxf6 {[%emt 0:22:38]} 25. Qxf6 {[%emt 0:00:10]} Qd8 {[%emt 0:00:32]} 26. Qh8+ {[%emt 0:06:38]} Ke7 {[%emt 0:00:06]} 27. Qxh7 {[%emt 0:00:20]} Rh8 {[%emt 0:01:30]} 28. Qg7 {[%emt 0:00:07]} Qf8 {[%emt 0:00:06]} 29. Qxf8+ {[%emt 0:01:13]} Raxf8 {[%emt 0:00:17]} 30. Ng4 {[%emt 0:00:51]} Nxg4 {[%emt 0:03:30]} 31. hxg4 {[%emt 0:00:03]} Rh4 {[%emt 0:00:19]} 32. f3 {[%emt 0:03:29]} Kf6 {[%emt 0:01:34]} 33. Kf2 {[%emt 0:02:16]} Rfh8 {[%emt 0:00:26]} 34. Rae1 {[%emt 0:02:12]} Ke5 {[%emt 0:00:27]} 35. f4+ {[%emt 0:08:57]} Kf6 {[%emt 0:02:01]} 36. Kg3 {[%emt 0:00:00]} Bc8 {[%emt 0:00:48]} 37. Bd1 {[%emt 0:00:00]} Rh1 {[%emt 0:01:54]} 38. e5+ {[%emt 0:00:00]} Ke7 {[%emt 0:00:05]} 39. Bf3 {[%emt 0:00:00]} Rxe1 {[%emt 0:00:36]} 40. Rxe1 {[%emt 0:00:00]} Rg8 {[%emt 0:00:00]} 41. Rh1 {[%emt 0:05:42]} Bd7 {[%emt 0:19:28]} 42. Rh7 {[%emt 0:02:02]} Be8 {[%emt 0:01:22]} 43. Be4 {[%emt 0:08:01]} c4 {[%emt 0:04:13]} 44. e6 {[%emt 0:02:47]} a5 {[%emt 0:00:47]} 45. Kf3 {[%emt 0:02:59]} Kf8 {[%emt 0:00:44]} 46. f5 {[%emt 0:03:02]} gxf5 {[%emt 0:01:36]} 47. gxf5 {[%emt 0:00:07]} Rg7 {[%emt 0:00:32]} 48. f6 {[%emt 0:01:55]} Rxh7 {[%emt 0:01:54]} 49. Bxh7 {[%emt 0:00:04]} fxe6 {[%emt 0:00:30]} 50. dxe6 {[%emt 0:00:05]} Bc6+ {[%emt 0:00:07]} 51. Ke3 {[%emt 0:01:14]} b4 {[%emt 0:02:11]} 52. Bg6 {[%emt 0:02:03]} Be8 {[%emt 0:02:29]} 53. e7+ {[%emt 0:00:15]} 1-0